bitfinex-derivatives/quotes_BTCF0:USTF0_20240907
["timestamp","ask_amount","ask_price","bid_price","bid_amount"]
[1725747863797,0.092554,54025.0,54024.0,0.094555]
[1725747866299,0.092554,54025.0,54024.0,0.10648595]
[1725747866897,0.22137025,54025.0,54024.0,0.10648595]
[1725747867107,0.25712365,54025.0,54024.0,0.10648595]
[1725747867304,0.25712365,54025.0,54024.0,0.094555]
[1725747867507,0.1283074,54025.0,54024.0,0.094555]
[1725747867696,0.22149466,54025.0,54024.0,0.094555]
[1725747867901,0.25724868,54025.0,54024.0,0.094555]
[1725747868506,0.1283074,54025.0,54024.0,0.094555]
[1725747868717,0.1283074,54025.0,54024.0,0.002]
[1725747868718,0.27363657,54025.0,54024.0,0.002]
[1725747868921,0.27363657,54025.0,54000.0,0.32563212]
[1725747868922,1.39322387,54025.0,54005.0,0.321]
[1725747869214,1.39322387,54025.0,54000.0,0.23303612]
[1725747869215,0.09259,54005.0,54002.0,0.1]
[1725747869514,0.11048803,54003.0,54002.0,0.192593]
[1725747869911,0.09259,54005.0,54003.0,0.092592]
[1725747870212,0.09259,54005.0,54004.0,0.19259]
[1725747872213,0.0464,54011.0,54004.0,0.1]
[1725747872405,0.002,54005.0,54004.0,0.09259]
[1725747872712,0.003,54005.0,54004.0,0.09259]
[1725747873305,0.002,54005.0,54004.0,0.09259]
[1725747873514,0.002,54005.0,54004.0,0.19259]
[1725747873908,0.004,54005.0,54004.0,0.19259]
[1725747874412,0.002,54005.0,54004.0,0.19259]
[1725747875717,0.003,54005.0,54004.0,0.19259]
[1725747876523,0.002,54005.0,54004.0,0.19259]
[1725747877621,0.001,54005.0,54004.0,0.19259]
[1725747877811,0.002,54005.0,54004.0,0.19259]
[1725747879703,0.001,54005.0,54004.0,0.19259]
[1725747879906,0.002,54005.0,54004.0,0.19259]
[1725747880514,0.001,54005.0,54004.0,0.19259]
[1725747880721,0.002,54005.0,54004.0,0.19259]
[1725747882007,0.002,54005.0,54004.0,0.28518]
[1725747885416,0.003,54005.0,54004.0,0.28518]
[1725747890329,0.003,54005.0,54004.0,0.34058589]
[1725747890520,0.003,54005.0,54004.0,0.28518]
[1725747890715,0.003,54005.0,54004.0,0.34058589]
[1725747890921,0.003,54005.0,54004.0,0.28518]
[1725747891523,0.003,54005.0,54004.0,0.34058589]
[1725747892120,0.001,54005.0,54004.0,0.93329]
[1725747892313,0.0479,54020.0,54004.0,1.25552]
[1725747892530,0.0479,54020.0,54017.0,0.1]
[1725747892825,0.0479,54020.0,54017.0,0.10943759]
[1725747893730,0.0499,54020.0,54017.0,0.11043759]
[1725747894023,0.0499,54020.0,54019.0,0.092564]
[1725747894222,0.0489,54020.0,54019.0,0.092564]
[1725747894423,0.0499,54020.0,54019.0,0.092564]
[1725747895332,0.0489,54020.0,54019.0,0.092564]
[1725747895925,0.0489,54020.0,54019.0,0.093564]
[1725747896121,0.0479,54020.0,54019.0,0.094564]
[1725747897426,0.1585927,54020.0,54019.0,0.094564]
[1725747897825,0.0479,54020.0,54019.0,0.094564]
[1725747898231,0.0479,54020.0,54019.0,0.10699511]
[1725747898825,0.15859747,54020.0,54019.0,0.10699511]
[1725747901330,0.0479,54020.0,54019.0,0.10699511]
[1725747902931,0.15854631,54020.0,54019.0,0.10699511]
[1725747903329,0.0479,54020.0,54019.0,0.10699511]
[1725747903929,0.08365193,54020.0,54019.0,0.10699511]
[1725747904333,0.17621393,54020.0,54019.0,0.002]
[1725747904534,1.55313403,54020.0,54019.0,0.002]
[1725747904722,1.46946567,54020.0,54019.0,0.002]
[1725747905734,0.77690367,54020.0,54019.0,0.002]
[1725747905937,0.77690367,54020.0,54018.0,0.092566]
[1725747905938,0.092564,54019.0,54018.0,0.092566]
[1725747906229,0.17164567,54019.0,54018.0,0.192566]
[1725747906432,0.03575193,54019.0,54018.0,0.192566]
[1725747906730,0.03475193,54019.0,54018.0,0.192566]
[1725747908433,0.03675193,54019.0,54018.0,0.192566]
[1725747908836,0.03775193,54019.0,54018.0,0.193566]
[1725747909334,0.03675193,54019.0,54018.0,0.193566]
[1725747909539,0.03775193,54019.0,54018.0,0.194566]
[1725747909722,0.003,54019.0,54018.0,0.194566]
[1725747910444,0.22464979,54019.0,54018.0,0.094566]
[1725747911327,0.095564,54019.0,54018.0,0.094566]
[1725747911523,0.1408931,54019.0,54018.0,0.094566]
[1725747912033,0.095564,54019.0,54018.0,0.094566]
[1725747912236,0.20621216,54019.0,54018.0,0.094566]
[1725747912630,0.095564,54019.0,54018.0,0.094566]
[1725747913241,0.20621828,54019.0,54018.0,0.094566]
[1725747915236,0.095564,54019.0,54018.0,0.094566]
[1725747915740,0.20621828,54019.0,54018.0,0.094566]
[1725747915941,0.095564,54019.0,54018.0,0.094566]
[1725747917435,0.003,54019.0,54018.0,0.194566]
[1725747919431,0.0387529,54019.0,54018.0,0.194566]
[1725747924755,0.03875257,54019.0,54018.0,0.194566]
[1725747926664,0.16784223,54019.0,54018.0,0.194566]
[1725747926962,0.11380513,54019.0,54018.0,0.194566]
[1725747928864,0.003,54019.0,54018.0,1.51640295]
[1725747929160,0.003,54019.0,54018.0,1.442492]
[1725747929349,0.003,54019.0,54018.0,1.51647516]
[1725747929760,0.003,54019.0,54018.0,1.442492]
[1725747929961,0.003,54019.0,54018.0,1.51647516]
[1725747930167,0.003,54019.0,54018.0,1.60904116]
[1725747930466,0.003,54019.0,54018.0,1.51647516]
[1725747931560,0.003,54019.0,54018.0,1.535058]
[1725747932857,0.003,54019.0,54018.0,1.442492]
[1725747933160,0.003,54019.0,54018.0,0.287132]
[1725747933360,0.003,54019.0,54018.0,0.887132]
[1725747933568,0.003,54019.0,54018.0,1.442492]
[1725747935669,0.003,54019.0,54018.0,1.535058]
[1725747935864,0.11080513,54032.0,54031.0,0.092544]
[1725747936068,0.11080513,54033.0,54032.0,0.092542]
[1725747936567,0.11080513,54034.0,54033.0,0.09254]
[1725747938464,0.11280513,54034.0,54033.0,0.09354]
[1725747938863,0.002,54034.0,54033.0,0.09354]
[1725747939064,0.002,54034.0,54033.0,0.09454]
[1725747940366,0.094538,54034.0,54033.0,0.09454]
[1725747941274,0.20534313,54034.0,54033.0,0.09454]
[1725747941963,0.13028304,54034.0,54033.0,0.09454]
[1725747943968,0.13028304,54034.0,54033.0,0.1066362]
[1725747948968,0.094538,54034.0,54033.0,0.1066362]
[1725747951863,0.20512787,54034.0,54033.0,0.1066362]
[1725747953864,0.094538,54034.0,54033.0,0.1066362]
[1725747954768,0.287076,54034.0,54033.0,0.002]
[1725747954969,0.092552,54027.0,54022.0,0.05541925]
[1725747955274,0.0451,54026.0,54022.0,0.01199738]
[1725747955472,0.0451,54026.0,54025.0,0.092554]
[1725747955677,0.137652,54026.0,54025.0,0.092554]
[1725747955976,0.137652,54026.0,54013.0,0.05541925]
[1725747955977,0.092569,54017.0,54013.0,0.05541925]
[1725747956178,0.092569,54017.0,54015.0,0.092571]
[1725747956179,0.090569,54017.0,54015.0,0.092571]
[1725747957081,0.11068552,54016.0,54015.0,0.092571]
[1725747957275,0.11067813,54016.0,54015.0,0.092571]
[1725747957878,0.10967813,54016.0,54015.0,0.10476483]
[1725747958080,0.089569,54017.0,54016.0,0.092569]
[1725747958672,0.092569,54017.0,54016.0,0.092569]
[1725747958975,0.003,54017.0,54016.0,0.10174486]
[1725747959483,0.006,54017.0,54016.0,0.10274486]
[1725747961889,0.006,54017.0,54016.0,0.093569]
[1725747962184,0.006,54017.0,54016.0,0.10301214]
[1725747962588,0.006,54017.0,54016.0,0.15211214]
[1725747969994,0.006,54017.0,54016.0,0.093569]
[1725747971890,0.098568,54017.0,54016.0,0.093569]
[1725747985105,0.006,54017.0,54016.0,0.093569]
[1725747985307,0.006,54017.0,54016.0,0.14898825]
[1725747985505,0.006,54017.0,54016.0,0.093569]
[1725747986310,0.006,54017.0,54016.0,0.26012116]
[1725747986499,0.006,54017.0,54016.0,0.186138]
[1725747987599,0.006,54017.0,54016.0,0.185138]
[1725747987600,0.003,54017.0,54016.0,0.185138]
[1725747987803,0.006,54017.0,54016.0,0.185138]
[1725747988697,0.006,54017.0,54016.0,0.16659775]
[1725747989609,0.006,54017.0,54016.0,0.092569]
[1725747989803,0.006,54017.0,54016.0,0.16659775]
[1725747990209,0.006,54017.0,54016.0,0.092569]
[1725747990412,0.006,54017.0,54016.0,0.16659775]
[1725747991512,0.006,54017.0,54016.0,0.092569]
[1725747991714,0.006,54017.0,54016.0,0.16659775]
[1725747992203,0.006,54017.0,54016.0,0.092569]
[1725747993917,0.006,54017.0,54016.0,0.16657477]
[1725747994100,0.006,54017.0,54016.0,0.185138]
[1725748002212,0.006,54017.0,54016.0,0.25914377]
[1725748004715,0.006,54017.0,54016.0,0.185138]
[1725748007008,0.006,54017.0,54016.0,0.092569]
[1725748007415,0.006,54017.0,54016.0,0.16655671]
[1725748007615,0.006,54017.0,54016.0,0.092569]
[1725748007817,0.006,54017.0,54016.0,0.16655671]
[1725748008111,0.006,54017.0,54016.0,0.092569]
[1725748012919,0.11649416,54017.0,54016.0,0.092569]
[1725748014619,0.006,54017.0,54016.0,0.092569]
[1725748018126,0.006,54017.0,54016.0,0.18491215]
[1725748018324,0.006,54017.0,54016.0,0.3259524]
[1725748018516,0.006,54017.0,54016.0,0.092569]
[1725748018726,0.006,54017.0,54016.0,0.32595461]
[1725748019530,0.006,54017.0,54016.0,0.23361146]
[1725748019725,0.004,54017.0,54016.0,1.52566203]
[1725748019927,0.0482,54028.0,54027.0,0.09255]
[1725748020234,0.0482,54028.0,54027.0,0.19255]
[1725748021615,0.0482,54028.0,54027.0,0.19355]
[1725748022228,0.0482,54028.0,54027.0,0.19455]
[1725748023320,0.0482,54028.0,54027.0,0.2500475]
[1725748024320,0.0482,54028.0,54027.0,0.19455]
[1725748026531,0.0482,54028.0,54027.0,0.20674735]
[1725748030227,0.0482,54028.0,54027.0,0.20574735]
[1725748030832,0.0482,54028.0,54027.0,0.20474735]
[1725748032921,0.0482,54028.0,54027.0,0.10474735]
[1725748034029,0.15901492,54028.0,54027.0,0.10474735]
[1725748034229,0.0482,54028.0,54027.0,0.10474735]
[1725748037723,0.0482,54028.0,54027.0,0.01219735]
[1725748038038,0.0482,54028.0,54022.0,0.092558]
[1725748038039,0.092556,54025.0,54022.0,0.092558]
[1725748038246,0.092556,54025.0,54023.0,0.092556]
[1725748039439,0.092556,54025.0,54023.0,0.093556]
[1725748039929,0.0482,54028.0,54026.0,0.092551]
[1725748040123,0.14075,54028.0,54026.0,0.092551]
[1725748040928,0.09255,54027.0,54026.0,0.092551]
[1725748044930,0.0482,54028.0,54021.0,0.0554975]
[1725748045137,0.092559,54022.0,54021.0,0.09256]
[1725748046034,0.092559,54022.0,54021.0,0.10607123]
[1725748046435,0.092559,54022.0,54021.0,0.10907123]
[1725748047534,0.17828966,54031.0,54021.0,0.01651123]
[1725748047535,0.11079212,54029.0,54021.0,0.01651123]
[1725748047728,0.11079212,54029.0,54022.0,0.1]
[1725748048132,0.11079212,54028.0,54022.0,0.1]
[1725748048341,0.11079212,54029.0,54022.0,0.1]
[1725748048641,0.092546,54030.0,54028.0,0.092548]
[1725748049338,0.11086259,54029.0,54028.0,0.092548]
[1725748049743,0.11086331,54029.0,54028.0,0.092548]
[1725748050835,0.092546,54030.0,54029.0,0.092547]
[1725748052244,0.1,54033.0,54030.0,0.092544]
[1725748052640,0.59098847,54032.0,54029.0,0.002]
[1725748052841,0.192545,54030.0,54029.0,0.094547]
[1725748053535,0.192545,54030.0,54029.0,0.093547]
[1725748053536,0.22729473,54030.0,54029.0,0.093547]
[1725748053735,1.346785,54030.0,54029.0,0.093547]
[1725748054137,1.38253421,54030.0,54029.0,0.092547]
[1725748054444,1.345785,54030.0,54029.0,0.092547]
[1725748055145,1.346785,54030.0,54029.0,0.094547]
[1725748055739,0.191545,54030.0,54029.0,0.094547]
[1725748058537,0.091545,54030.0,54029.0,0.094547]
[1725748058739,0.001,54030.0,54029.0,0.094547]
[1725748061350,0.1,54032.0,54031.0,0.092544]
[1725748061649,0.13574642,54032.0,54031.0,0.092544]
[1725748062242,0.181065,54032.0,54031.0,0.092544]
[1725748062844,0.23886791,54032.0,54031.0,0.093544]
[1725748063044,0.182065,54032.0,54031.0,0.093544]
[1725748063253,0.183065,54032.0,54031.0,0.094544]
[1725748065245,0.42344951,54032.0,54031.0,0.094544]
[1725748065755,0.27560599,54032.0,54031.0,0.094544]
[1725748065951,0.4234485,54032.0,54031.0,0.094544]
[1725748069449,0.23028863,54032.0,54031.0,0.094544]
[1725748070547,0.23028879,54032.0,54031.0,0.094544]
[1725748071448,0.194542,54032.0,54031.0,0.094544]
[1725748072647,0.23028798,54032.0,54031.0,0.094544]
[1725748073045,0.194542,54032.0,54031.0,0.094544]
[1725748076060,0.23028843,54032.0,54031.0,0.094544]
[1725748076258,0.23028817,54032.0,54031.0,0.094544]
[1725748077354,0.23028898,54032.0,54031.0,0.094544]
[1725748080252,0.23028898,54032.0,54031.0,0.002]
[1725748080560,0.23029013,54032.0,54031.0,0.002]
[1725748081162,0.3596748,54032.0,54031.0,0.002]
[1725748081956,0.23029013,54032.0,54031.0,0.002]
[1725748082160,0.3596748,54032.0,54031.0,0.002]
[1725748083350,0.23029013,54032.0,54031.0,0.002]
[1725748084065,0.23028915,54032.0,54031.0,0.002]
[1725748084363,0.27560717,54032.0,54031.0,0.002]
[1725748085970,0.42344968,54032.0,54031.0,0.002]
[1725748086260,0.27560717,54032.0,54031.0,0.002]
[1725748086466,0.42344968,54032.0,54031.0,0.002]
[1725748087752,0.27560717,54032.0,54031.0,0.002]
[1725748088864,0.42345086,54032.0,54031.0,0.002]
[1725748089064,0.27560835,54032.0,54031.0,0.002]
[1725748089262,0.42345086,54032.0,54031.0,0.002]
[1725748089464,0.27560835,54032.0,54031.0,0.002]
[1725748090666,0.42345086,54032.0,54031.0,0.002]
[1725748091165,0.27560835,54032.0,54031.0,0.002]
[1725748091557,0.42345086,54032.0,54031.0,0.002]
[1725748091758,0.27560835,54032.0,54031.0,0.002]
[1725748092569,0.23028967,54032.0,54031.0,0.002]
[1725748093968,0.23029092,54032.0,54031.0,0.002]
[1725748098477,0.32283292,54032.0,54031.0,0.002]
[1725748098787,0.32283295,54032.0,54031.0,0.002]
[1725748099577,0.36815254,54032.0,54031.0,0.002]
[1725748102971,0.42495896,54032.0,54031.0,0.002]
[1725748103276,0.42495965,54032.0,54031.0,0.002]
[1725748103472,0.36815254,54032.0,54031.0,0.002]
[1725748103868,0.42496088,54032.0,54031.0,0.002]
[1725748104074,0.42495858,54032.0,54031.0,0.002]
[1725748104473,0.3681532,54032.0,54031.0,0.002]
[1725748107476,0.32283293,54032.0,54031.0,0.002]
[1725748112785,0.32283293,54032.0,54031.0,0.01428189]
[1725748114787,0.32283293,54032.0,54031.0,0.002]
[1725748114983,0.45216888,54032.0,54031.0,0.002]
[1725748115494,0.32283293,54032.0,54031.0,0.002]
[1725748117791,0.13029093,54032.0,54031.0,0.094544]
[1725748118088,0.23029093,54032.0,54031.0,0.094544]
[1725748118681,0.23028927,54032.0,54031.0,0.094544]
[1725748119491,0.23028927,54032.0,54031.0,0.002]
[1725748122481,0.27560999,54032.0,54031.0,0.002]
[1725748123690,0.42342495,54032.0,54031.0,0.002]
[1725748123894,0.42342495,54032.0,54021.0,0.0456]
[1725748123895,1.33831043,54032.0,54016.0,0.321]
[1725748124186,0.092573,54014.0,54013.0,0.0476]
[1725748124385,0.192573,54014.0,54013.0,0.0476]
[1725748126081,0.185573,54014.0,54013.0,0.0596]
[1725748126692,0.185573,54014.0,54013.0,0.152174]
[1725748126992,0.185573,54014.0,54013.0,0.162174]
[1725748127295,0.085573,54014.0,54013.0,0.162174]
[1725748129390,0.085573,54014.0,54013.0,0.0696]
[1725748132183,0.085573,54014.0,54013.0,0.162174]
[1725748133394,0.185573,54014.0,54013.0,0.162174]
[1725748138399,0.185573,54014.0,54002.0,0.0554975]
[1725748138400,0.092592,54003.0,54002.0,0.0554975]
[1725748138590,1.2554,54014.0,53995.0,0.0554975]
[1725748138591,0.092603,53997.0,53995.0,0.0554975]
[1725748138900,0.1,54004.0,53995.0,0.092605]
[1725748138901,0.192604,53996.0,53995.0,0.092605]
[1725748139489,0.092604,53996.0,53995.0,0.092605]
[1725748139699,0.192604,53996.0,53995.0,0.106605]
[1725748140198,0.192604,53996.0,53995.0,0.014]
[1725748140395,0.101,53996.0,53995.0,0.01]
[1725748141803,0.193604,53996.0,53995.0,0.01]
[1725748144003,0.093604,53996.0,53995.0,0.01]
[1725748149205,0.093604,53996.0,53995.0,0.102605]
[1725748154900,0.093604,53996.0,53995.0,0.092605]
[1725748155102,0.094604,53996.0,53995.0,0.099605]
[1725748155296,0.093604,53996.0,53995.0,0.099605]
[1725748165909,0.193604,53996.0,53995.0,0.099605]
[1725748168320,0.193604,53996.0,53995.0,0.1551025]
[1725748168717,0.193604,53996.0,53995.0,0.099605]
[1725748188532,0.092571,54016.0,53995.0,0.107]
[1725748188741,0.092585,54007.0,54003.0,0.05558229]
[1725748188932,0.092585,54007.0,54005.0,0.05558229]
[1725748189141,0.092585,54007.0,54004.0,0.12150972]
[1725748189333,0.092585,54007.0,54005.0,0.05553884]
[1725748189638,0.092585,54007.0,54004.0,0.10293884]
[1725748189934,0.092585,54007.0,54006.0,0.092583]
[1725748190938,0.104585,54007.0,54006.0,0.092583]
[1725748191538,0.106585,54007.0,54006.0,0.093583]
[1725748191943,0.014,54007.0,54006.0,0.093583]
[1725748192143,0.016,54007.0,54006.0,0.093583]
[1725748196448,0.016,54007.0,54006.0,0.14901622]
[1725748197749,0.016,54007.0,54006.0,0.093583]
[1725748198440,0.016,54007.0,54006.0,0.741649]
[1725748200137,0.015,54007.0,54006.0,1.434235]
[1725748200442,0.06023144,54023.0,54022.0,0.092559]
[1725748200443,0.01223144,54023.0,54022.0,0.092559]
[1725748200640,0.01223144,54023.0,54014.0,0.092571]
[1725748200641,0.1,54025.0,54024.0,0.092556]
[1725748200845,0.1,54025.0,54010.0,0.092579]
[1725748201035,0.049,54030.0,54014.0,0.1]
[1725748201036,0.092558,54023.0,54014.0,0.1]
[1725748201234,0.1,54022.0,54020.0,0.092562]
[1725748201434,0.1,54022.0,54021.0,0.092561]
[1725748202337,0.014,54023.0,54022.0,0.092559]
[1725748203240,0.021,54023.0,54022.0,0.093559]
[1725748203443,0.007,54023.0,54022.0,0.093559]
[1725748203849,0.1,54024.0,54023.0,0.092557]
[1725748204951,0.114,54024.0,54023.0,0.093557]
[1725748206948,0.114,54024.0,54023.0,0.10585571]
[1725748210139,0.014,54024.0,54023.0,0.10585571]
[1725748210345,0.014,54024.0,54023.0,0.75373271]
[1725748210747,0.014,54024.0,54023.0,0.19841271]
[1725748212446,0.014,54024.0,54023.0,0.20585571]
[1725748212653,0.299112,54024.0,54023.0,0.001]
[1725748213256,1.46690979,54024.0,54023.0,0.001]
[1725748213455,1.28179779,54024.0,54011.0,0.092577]
[1725748213644,0.1,54012.0,54011.0,0.092577]
[1725748214551,0.1,54012.0,54011.0,0.100577]
[1725748214948,0.1,54014.0,54013.0,0.092573]
[1725748215550,0.0461,54016.0,54011.0,0.008]
[1725748215741,0.0461,54016.0,54015.0,0.092571]
[1725748217355,0.284087,54018.0,54017.0,0.092568]
[1725748217356,0.00152,54018.0,54017.0,0.092568]
[1725748217549,0.00152,54018.0,54011.0,0.19]
[1725748217550,0.19,54021.0,54020.0,0.092562]
[1725748219050,0.196,54021.0,54020.0,0.092562]
[1725748219756,0.006,54021.0,54020.0,0.092562]
[1725748220156,0.015,54021.0,54020.0,0.092562]
[1725748222066,0.015,54021.0,54020.0,0.10447217]
[1725748225857,0.015,54021.0,54020.0,0.092562]
[1725748226057,0.205,54021.0,54020.0,0.092562]
[1725748226460,0.297561,54021.0,54020.0,0.092562]
[1725748226854,0.297561,54021.0,54012.0,0.05543322]
[1725748226855,0.092566,54018.0,54016.0,0.10447943]
[1725748227056,0.092566,54018.0,54016.0,0.092568]
[1725748227256,0.092568,54017.0,54016.0,0.092568]
[1725748228261,0.196,54021.0,54009.0,0.01240209]
[1725748228262,0.092573,54014.0,54009.0,0.01240209]
[1725748228451,0.092573,54014.0,54006.0,0.331186]
[1725748228953,0.092573,54014.0,54007.0,0.0605082]
[1725748229659,0.093573,54014.0,54007.0,0.0695082]
[1725748229854,0.093573,54014.0,54013.0,0.092574]
[1725748230460,0.094573,54014.0,54013.0,0.092574]
[1725748231467,0.093573,54014.0,54013.0,0.092574]
[1725748231664,0.093573,54014.0,54013.0,0.094574]
[1725748236954,0.093573,54014.0,54013.0,0.10693671]
[1725748236955,0.001,54014.0,54013.0,0.10693671]
[1725748237160,0.001,54014.0,54013.0,0.16236993]
[1725748237975,0.001,54014.0,54013.0,0.10693671]
[1725748249777,0.001,54014.0,54013.0,0.16236993]
[1725748250078,0.093573,54014.0,54013.0,0.10693671]
[1725748250274,0.093573,54014.0,54013.0,0.002]
[1725748250598,0.286146,54014.0,54013.0,0.002]
[1725748252571,0.29854336,54014.0,54013.0,0.002]
[1725748253177,0.286146,54014.0,54013.0,0.002]
[1725748254675,0.193573,54014.0,54013.0,0.002]
[1725748255181,0.092585,54007.0,54000.0,0.05552011]
[1725748255483,0.092597,54000.0,53998.0,0.4136]
[1725748255673,0.092597,54000.0,53998.0,0.0926]
[1725748256070,0.19,53999.0,53998.0,0.0926]
[1725748257076,0.092601,53998.0,53992.0,0.05552011]
[1725748257274,0.092601,53998.0,53995.0,0.092604]
[1725748257479,0.282594,54002.0,53997.0,0.092601]
[1725748258168,0.282594,54002.0,53998.0,0.012]
[1725748258169,0.001,53999.0,53998.0,0.012]
[1725748258675,0.001,54000.0,53997.0,0.105601]
[1725748259077,0.28619401,54002.0,53997.0,0.105601]
[1725748259384,0.284594,54002.0,53997.0,0.105601]
[1725748259680,0.192,54002.0,53997.0,0.105601]
[1725748259878,0.092595,54001.0,53997.0,0.105601]
[1725748260273,0.001,53999.0,53998.0,0.012]
[1725748261181,0.001,54000.0,53997.0,0.013]
[1725748261385,0.001,54000.0,53999.0,0.092598]
[1725748261975,0.01215428,54011.0,53998.0,0.012]
[1725748261976,0.092586,54007.0,54002.0,0.092592]
[1725748262174,0.001,54001.0,53999.0,0.0494]
[1725748262372,0.001,54001.0,54000.0,0.377197]
[1725748262580,0.001,54001.0,54000.0,0.932757]
[1725748262876,0.092578,54011.0,54007.0,0.092584]
[1725748263381,0.092578,54011.0,54008.0,0.092582]
[1725748264081,0.092578,54011.0,54009.0,0.092581]
[1725748265385,0.097578,54011.0,54009.0,0.092581]
[1725748265679,0.005,54011.0,54010.0,0.09258]
[1725748266083,0.001,54011.0,54010.0,0.09258]
[1725748266281,0.006,54011.0,54010.0,0.09258]
[1725748266988,0.007,54011.0,54010.0,0.09258]
[1725748268181,0.008,54011.0,54010.0,0.09258]
[1725748283781,0.008,54011.0,54010.0,0.18516]
[1725748283985,0.11872467,54011.0,54010.0,0.18516]
[1725748284183,0.008,54011.0,54010.0,0.13868]
[1725748287589,0.008,54011.0,54010.0,0.23126]
[1725748287892,0.008,54011.0,54010.0,1.3867]
[1725748288101,0.005,54011.0,54010.0,1.3867]
[1725748290091,0.005,54011.0,54010.0,1.44222011]
[1725748291100,0.005,54011.0,54010.0,1.3867]
[1725748291501,0.005,54011.0,54010.0,0.14805883]
[1725748291803,0.005,54011.0,54010.0,0.09258]
[1725748292595,0.005,54011.0,54010.0,0.14805883]
[1725748293003,0.005,54011.0,54010.0,0.09258]
[1725748293502,0.005,54011.0,54010.0,0.14805883]
[1725748295105,0.005,54011.0,54010.0,0.13938]
[1725748302909,0.005,54011.0,54010.0,0.87998]
[1725748303111,0.15692467,54023.0,54022.0,0.092559]
[1725748303297,0.0462,54023.0,54022.0,0.10182601]
[1725748304509,0.0602,54023.0,54022.0,0.10182601]
[1725748304708,0.1602,54023.0,54022.0,0.092559]
[1725748304905,0.1662,54023.0,54022.0,0.093559]
[1725748309405,0.258757,54023.0,54022.0,0.093559]
[1725748309813,0.258757,54023.0,54022.0,0.10592449]
[1725748311405,0.36959483,54023.0,54022.0,0.10592449]
[1725748312411,0.258757,54023.0,54022.0,0.10592449]
[1725748317220,0.258757,54023.0,54022.0,0.001]
[1725748317421,0.38808319,54023.0,54022.0,0.001]
[1725748317723,0.306557,54023.0,54022.0,0.001]
[1725748318121,0.35188207,54023.0,54022.0,0.001]
[1725748322231,0.35188208,54023.0,54022.0,0.001]
[1725748322728,0.306557,54023.0,54022.0,0.001]
[1725748322930,0.35188166,54023.0,54022.0,0.001]
[1725748323636,0.30408166,54023.0,54022.0,0.001]
[1725748324135,0.20408166,54023.0,54022.0,0.001]
[1725748324331,0.15788166,54023.0,54022.0,0.001]
[1725748325333,0.112557,54023.0,54022.0,0.001]
[1725748329441,0.098557,54023.0,54022.0,0.001]
[1725748329743,0.111557,54023.0,54022.0,0.001]
[1725748332132,0.25936177,54023.0,54022.0,0.001]
[1725748332341,0.15688198,54023.0,54022.0,0.001]
[1725748333642,0.25688198,54023.0,54022.0,0.001]
[1725748336941,0.30482154,54023.0,54022.0,0.001]
[1725748337133,0.15688075,54023.0,54022.0,0.001]
[1725748340351,0.111557,54023.0,54022.0,0.001]
[1725748357447,0.24100673,54023.0,54022.0,0.001]
[1725748362154,0.204116,54023.0,54022.0,0.001]
[1725748362357,1.30376973,54023.0,54011.0,0.05547955]
[1725748362558,1.30376973,54023.0,54009.0,0.00104]
[1725748362559,0.09258,54010.0,54009.0,0.00104]
[1725748362858,0.09258,54010.0,54007.0,0.07397274]
[1725748362859,0.185166,54008.0,54007.0,0.07397274]
[1725748363162,0.1,54008.0,54000.0,0.00096]
[1725748363349,0.092598,54000.0,53998.0,0.045]
[1725748364250,0.087598,54000.0,53998.0,0.045]
[1725748364844,0.084598,54000.0,53998.0,0.045]
[1725748365047,0.085598,54000.0,53998.0,0.05]
[1725748365453,0.086598,54000.0,53998.0,0.07411948]
[1725748366251,0.086598,54000.0,53998.0,0.16671948]
[1725748366452,0.001,54000.0,53999.0,0.748158]
[1725748366956,0.001,54000.0,53999.0,1.348158]
[1725748367660,0.002,54000.0,53999.0,1.348158]
[1725748373562,0.002,54000.0,53999.0,0.748158]
[1725748377754,0.002,54000.0,53999.0,0.192598]
[1725748379264,0.002,54000.0,53999.0,0.285196]
[1725748379464,0.002,54000.0,53999.0,1.440756]
[1725748381969,0.002,54000.0,53999.0,1.533354]
[1725748382155,0.092574,54014.0,54004.0,0.09259]
[1725748382355,0.092575,54013.0,54012.0,0.092575]
[1725748383963,0.100575,54013.0,54012.0,0.092575]
[1725748385865,0.104575,54013.0,54012.0,0.092575]
[1725748389260,0.092576,54012.0,54011.0,0.01197519]
[1725748389471,0.012,54013.0,53995.0,0.321]
[1725748389773,0.0926,53998.0,53997.0,0.092601]
[1725748389970,0.1,53999.0,53998.0,0.0926]
[1725748390963,0.1,53999.0,53998.0,0.1026]
[1725748392071,0.192598,53999.0,53998.0,0.1026]
[1725748392668,0.193598,53999.0,53998.0,0.1026]
[1725748393470,0.194598,53999.0,53998.0,0.1026]
[1725748395874,0.194598,53999.0,53998.0,0.1149655]
[1725748396366,0.194598,53999.0,53998.0,0.18887879]
[1725748400265,0.094598,53999.0,53998.0,0.18887879]
[1725748400866,0.094598,53999.0,53998.0,0.1149655]
[1725748402070,0.194598,53999.0,53998.0,0.1149655]
[1725748403574,0.287196,53999.0,53998.0,0.01]
[1725748404662,0.092605,53995.0,53994.0,0.05549388]
[1725748404869,0.188605,53995.0,53994.0,0.05549388]
[1725748405577,0.188605,53995.0,53994.0,0.01244895]
[1725748405877,0.092607,53994.0,53993.0,0.14810288]
[1725748406572,0.086607,53994.0,53993.0,0.14810288]
[1725748407079,0.088607,53994.0,53993.0,0.15310636]
[1725748407474,0.088607,53994.0,53993.0,0.097609]